[Event "Khanty-Mansiysk FIDE GP (Women)"]
[Site "Khanty-Mansiysk"]
[Date "2014.04.21"]
[Round "11"]
[White "Muminova, Nafisa"]
[Black "Stefanova, Antoaneta"]
[Result "0-1"]
[ECO "C79"]
[WhiteElo "2321"]
[BlackElo "2489"]
[Annotator "ChessBase Website"]
[PlyCount "78"]
[EventDate "2014.04.09"]
[EventType "tourn"]
[EventRounds "11"]
[EventCountry "RUS"]
[EventCategory "10"]
[SourceTitle "CBM 160"]
[Source "ChessBase"]
[SourceDate "2014.05.15"]
[SourceVersion "1"]
[SourceVersionDate "2014.05.15"]
[SourceQuality "1"]
[TimeControl "40/5400+30:1800+30"]
[WhiteClock "1:30:00"]
[BlackClock "1:30:00"]

1. e4 {[%emt 0:00:00]} e5 {[%emt 0:00:00]} 2. Nf3 {[%emt 0:00:00]} Nc6 {
[%emt 0:00:00]} 3. Bb5 {[%emt 0:00:00]} a6 {[%emt 0:00:00]} 4. Ba4 {[%emt 0:00:
00]} d6 {[%emt 0:00:25]} 5. O-O {[%emt 0:01:48]} Nf6 {[%emt 0:11:51]} 6. d3 {
[%emt 0:05:15]} g6 (6... Be7 7. c3 O-O 8. Re1 b5 9. Bc2 d5 10. Nbd2 dxe4 11.
dxe4 Be6 12. Bb3 Bxb3 13. axb3 Qd3 14. Qe2 Qxe2 15. Rxe2 Rfd8 16. Re1 Nd7 17.
b4 a5 18. bxa5 Rxa5 19. Rb1 Ra2 20. Nb3 Nb6 21. Kf1 Na4 22. h3 f6 23. Re2 b4
24. c4 Rd3 25. Re3 Rxe3 26. fxe3 Nd8 27. Ne1 Nb7 28. Nd3 Kf7 29. Bd2 Nac5 30.
Nbxc5 Nxc5 31. Nxc5 {0-1 (31) Maslak,K (2566)-Matlakov,M (2668) St Petersburg
2012}) 7. c4 {[%emt 0:00:42]} Bg7 {[%emt 0:03:12]} 8. Nc3 {[%emt 0:04:46]} O-O
{[%emt 0:05:09]} 9. Nd5 {[%emt 0:00:30]} h6 10. Be3 {[%emt 0:09:21]} Ng4 {
[%emt 0:10:26]} 11. Qc1 {[%emt 0:02:32]} f5 {[%emt 0:14:59]} 12. c5 {[%emt 0:
04:44]} fxe4 13. dxe4 {[%emt 0:01:28]} Rxf3 $1 {[%emt 0:08:57] Muminova was
simply too careless with her kingside, alowing Stefanova to crash through with
an obvious exchange sacrifice. Even then her position was only slightly worse,
with Black having a good attack as compensation for the exchange, but she
panicked and gave back too much material. The combination of the multiple
weaknesses and the extra material for Black gave Stefanova an easy victory.}
14. Bg5 {[%emt 0:02:50]} hxg5 {[%emt 0:05:08]} 15. gxf3 {[%emt 0:00:11]} Nd4 {
[%emt 0:01:44]} 16. Bd1 {[%emt 0:09:47]} Nh6 {[%emt 0:00:18]} 17. cxd6 {
[%emt 0:00:23]} cxd6 {[%emt 0:00:10]} 18. Kh1 {[%emt 0:04:30]} Be6 {[%emt 0:05:
17]} 19. Nc3 {[%emt 0:03:02]} Qf6 {[%emt 0:05:08]} 20. Qe3 {[%emt 0:03:05]} Rf8
{[%emt 0:02:26]} 21. Rg1 {[%emt 0:00:50]} Nxf3 {[%emt 0:01:23]} 22. Rg3 {
[%emt 0:09:57]} Nh4 {[%emt 0:02:05]} 23. f3 {[%emt 0:01:15]} Qf4 {[%emt 0:04:
19]} 24. Qd3 {[%emt 0:02:21]} Nf7 {[%emt 0:06:38]} 25. Be2 {[%emt 0:05:55]} b5
{[%emt 0:01:33]} 26. b3 {[%emt 0:00:45]} Rc8 {[%emt 0:00:53]} 27. Rag1 {
[%emt 0:01:57]} Rc5 {[%emt 0:02:42]} 28. b4 {[%emt 0:08:19]} Rc4 {[%emt 0:00:
58]} 29. Bd1 {[%emt 0:03:11]} Rd4 {[%emt 0:02:58]} 30. Qf1 {[%emt 0:00:34]} Qd2
{[%emt 0:01:48]} 31. Nd5 {[%emt 0:05:32]} Bxd5 {[%emt 0:00:48]} 32. exd5 {
[%emt 0:00:04]} Nf5 {[%emt 0:00:15]} 33. R3g2 {[%emt 0:00:11]} Qxb4 {[%emt 0:
00:23]} 34. Qf2 {[%emt 0:01:47]} e4 {[%emt 0:01:08]} 35. fxe4 {[%emt 0:01:10]}
Rxe4 {[%emt 0:00:05]} 36. Qa7 {[%emt 0:00:20]} Bd4 {[%emt 0:00:39]} 37. Qb8+ {
[%emt 0:02:15]} Kg7 {[%emt 0:00:07]} 38. a3 {[%emt 0:02:30]} Qc3 {[%emt 0:01:
41]} 39. Rc2 {[%emt 0:00:22]} Qh3 {[%emt 0:00:46]} 0-1